Cogmind - Beta 13 @@@ ROGUE MODE // 2024.02.27 @ 13:09:18 Player: Kaz Result: Destroyed by 2A-J7L(R) with Subdweller Laser Performance ------------- Evolutions (0) 0 Regions Visited (3) 600 Robots Destroyed (31) 155 Value Destroyed (752) 752 Prototype IDs (1) 20 Alien Tech Used (0) 0 Bonus (0) 0 TOTAL SCORE: 1527 Bonus ------- None Cogmind --------- Core Integrity 0/250 Matter 169/300 Energy 275/275 System Corruption 5% Temperature Cool (8) Movement Rolling (190) Ox6 Location -10/Subcaves Parts ------- > --- POWER (1) -------- Deuterium Engine > --- PROPULSION (2) --- Compact Wheel > --- UTILITY (2) ------ Huge Storage Unit Medium Armor Plating > --- WEAPON (2) ------- Barrage Gun Light Cannon > --- INVENTORY (25) --- Light Ion Engine Light Ion Engine Large Storage Unit Large Storage Unit Huge Storage Unit Medium Matter Pod (100) Medium Armor Plating Scrap Shield Light Assault Rifle Light Assault Rifle Light Cannon Flak Cannon Peak State ------------ > --- POWER ------------ Light Ion Engine > --- PROPULSION ------- Compact Wheel Compact Wheel > --- UTILITY ---------- Huge Storage Unit Experimental Sensor Array > --- WEAPON ----------- Light Assault Rifle Light Cannon > --- INVENTORY -------- Light Ion Engine Light Ion Engine Large Storage Unit Large Storage Unit Huge Storage Unit Medium Matter Pod Medium Armor Plating Medium Armor Plating Medium Armor Plating Medium Armor Plating Beam Cannon Light Assault Rifle Light Assault Rifle Light Cannon Light Cannon [Rating: 16] Favorites ----------- Power Light Ion Engine Engine Light Ion Engine Propulsion Compact Wheel Wheel Compact Wheel Utility Large Storage Unit Device Experimental Sensor Array Storage Large Storage Unit Protection Medium Armor Plating Weapon Light Assault Rifle Energy Gun Medium Laser Ballistic Gun Light Assault Rifle Ballistic Cannon Light Cannon Build | -11 -10 -10 -10 ------- Run | Yrd Mat Min Sub Slots Evolved . | . . . . Power . | . . . . Propulsion . | . . . . Utility . | . . . . Weapon . | . . . . Parts Attached 27 | 7 7 8 5 Power 3 | 1 . 1 1 Engine 3 | 1 . 1 1 Core . | . . . . Reactor . | . . . . Propulsion 6 | 2 2 2 . Treads . | . . . . Leg . | . . . . Wheel 6 | 2 2 2 . Hover . | . . . . Flight . | . . . . Utility 10 | 2 3 3 2 Device 1 | . . 1 . Storage 5 | 2 3 . . Processor . | . . . . Hackware . | . . . . Protection 4 | . . 2 2 Artifact . | . . . . Weapon 8 | 2 2 2 2 Energy Gun 2 | 2 . . . Energy Cannon . | . . . . Ballistic Gun 4 | . 2 1 1 Ballistic Cannon 2 | . . 1 1 Launcher . | . . . . Special Weapon . | . . . . Impact Weapon . | . . . . Slashing Weapon . | . . . . Piercing Weapon . | . . . . Special Melee Weapon . | . . . . Unidentified Prototypes 1 | . . 1 . Parts Lost 12 | . 2 5 5 Power 2 | . . 1 1 Propulsion 5 | . 2 2 1 Utility 2 | . . . 2 Weapon 3 | . . 2 1 Highest Loss Streak 5 | . 2 4 5 To Critical Strikes . | . . . . Average Slot Usage (%) 98 | . 99 97 94 Engine 13 | . 14 13 13 Wheel 27 | . 27 27 24 Storage 23 | . 28 14 14 Protection 4 | . . 13 13 Energy Gun 3 | . 6 . . Ballistic Gun 19 | . 21 14 16 Ballistic Cannon 4 | . . 13 11 Naked Turns . | . . . . Heaviest Build 105 | 16 105 105 102 Greatest Support 32 | 20 32 32 32 Greatest Overweight (x) 6 | 3 3 3 6 Average Overweight (x) 1 | . 1 2 2 Largest Inventory Capacity 25 | 8 25 25 25 Average Capacity 20 | 7 18 25 25 Most Carried 17 | 2 17 17 17 Average Carried 12 | . 11 13 15 Final Capacity 25 | 8 25 25 25 Final Carried 17 | 2 17 14 13 Class Distribution -------------------- 100% | Mutant Dominant Class ---------------- Mutant | -10/Materials Mutant | -10/Mines Mutant | -10/Subcaves Resources | -11 -10 -10 -10 ----------- Run | Yrd Mat Min Sub Matter Collected 702 | 260 184 258 . Remotely . | . . . . Salvage Created 1197 | 94 734 236 133 Parts 66 | 2 41 15 8 Haulers Intercepted 2 | . 2 . . Recyclers Shooed 3 | . 2 1 . Parts Field Recycled . | . . . . Retrieved Matter . | . . . . Parts Self-Destructed . | . . . . Prevented . | . . . . Kills | -11 -10 -10 -10 ------- Run | Yrd Mat Min Sub Combat Hostiles Destroyed 21 | . 11 6 4 Guns 15 | . 11 1 3 Cannons 6 | . . 5 1 Classes Destroyed 6 | 1 4 . 1 Hauler 2 | . 2 . . Recycler 5 | 1 3 1 . Watcher 3 | . 3 . . Swarmer 5 | . 3 2 . Grunt 12 | . 8 4 . Subdweller 4 | . . . 4 Best Kill Streak 4 | 1 4 4 2 Combat Bots Only 4 | . 3 4 2 Max Kills in Single Turn 1 | 1 1 1 1 Gunslinging . | . . . . Exploded . | . . . . Melee . | . . . . Uniques/NPCs Destroyed . | . . . . Combat | -11 -10 -10 -10 -------- Run | Yrd Mat Min Sub Hostile Shots Fired 142 | . 51 35 56 Missed 46 | . 14 8 24 Damage Taken 1570 | . 471 371 728 Core 272 | . 134 67 71 Absorbed by Shields . | . . . . Core Remaining (%) 100 | 100 . . . Volleys Fired 124 | 4 78 22 20 Largest 2 | 2 2 2 2 Hottest 90 | 90 90 55 63 Shots Fired 241 | 8 156 40 37 Gun 213 | 8 156 23 26 Cannon 28 | . . 17 11 Launcher . | . . . . Special . | . . . . Kinetic 187 | . 110 40 37 Thermal 54 | 8 46 . . Explosive . | . . . . Electromagnetic . | . . . . Robot Hit Streak 13 | 6 10 13 7 Robot Miss Streak 3 | 2 2 3 3 Penetration Max . | . . . . Secondary Targets 2 | . 1 . 1 Max Gunslinging Chain 1 | . 1 . 1 Shots Hit Robots 142 | 6 85 28 23 Core Hits 60 | 2 38 12 8 Critical Kills . | . . . . Critical Parts Destroyed . | . . . . Critical Strikes 5 | . 4 1 . Burn 4 | . 4 . . Blast 1 | . . 1 . Melee Attacks . | . . . . Impact . | . . . . Slashing . | . . . . Piercing . | . . . . Sneak Attacks . | . . . . Combat Hostiles . | . . . . Follow-up Attacks . | . . . . Damage Inflicted 1647 | 71 860 364 352 Guns 1274 | 71 846 129 228 Cannons 359 | . . 235 124 Explosions . | . . . . Melee . | . . . . Ramming 14 | . 14 . . Kinetic 1216 | . 500 364 352 Thermal 417 | 71 346 . . Explosive . | . . . . Electromagnetic . | . . . . Impact . | . . . . Slashing . | . . . . Piercing . | . . . . Highest Corruption 5 | . 3 5 5 Average Corruption 2 | . 1 4 5 Corruption Purged . | . . . . Corruption Blocked . | . . . . Effects 30 | . 14 9 7 Message Errors 5 | . 3 2 . Matter Fused 3 | . 2 1 . Heat Flow Errors 4 | . 2 . 2 Energy Discharges 3 | . 3 . . Parts Fused 2 | . . 2 . Data Loss (minor) 4 | . 2 1 1 Data Loss (major) 5 | . . 1 4 Misfires 2 | . 1 1 . Alerts 1 | . . 1 . Weapon Failures 1 | . 1 . . Overload Shots . | . . . . Overflow Damage 4 | . . 4 . Projectiles 4 | . . 4 . Explosions . | . . . . Melee . | . . . . Knockbacks 6 | . . 3 3 Impact . | . . . . Kinetic 6 | . . 3 3 Secondary . | . . . . Self-Inflicted Damage 7 | . 7 . . Shots . | . . . . Rammed 1 | . 1 . . Targets Rammed 1 | . 1 . . Kicked . | . . . . Crushed . | . . . . Highest Temperature 220 | 120 130 89 220 Average Temperature 43 | 63 42 26 84 Received Heat Transfer 561 | . 219 222 120 Siege Activations . | . . . . Robots Corrupted . | . . . . Combat Hostiles . | . . . . Parts Fried . | . . . . Impact Corruptions . | . . . . Robots Melted . | . . . . Combat Hostiles . | . . . . Parts Melted . | . . . . Heat Transferred 1494 | 186 1308 . . Parts Sabotaged . | . . . . Parts Stolen . | . . . . Parts Stripped . | . . . . Power Chain Reactions . | . . . . Alert | -11 -10 -10 -10 ------- Run | Yrd Mat Min Sub Peak Influence 196 | 5 196 135 . Initial 3 | . 3 . . Average 70 | . 67 87 . Maximum Alert Level . | . . . . Low Security (%) 100 | 100 100 100 . Level 1 . | . . . . Level 2 . | . . . . Level 3 . | . . . . Level 4 . | . . . . Level 5 . | . . . . High Security . | . . . . Max Security . | . . . . Squads Dispatched 2 | . 2 . . Investigation 2 | . 2 . . Extermination . | . . . . Reinforcement . | . . . . Assault . | . . . . Garrison . | . . . . Intercept . | . . . . Searches Triggered . | . . . . Construction Impeded . | . . . . Haulers Reinforced . | . . . . Active Scanning Responses . | . . . . Cargo Convoy Interrupts . | . . . . Stealth | -11 -10 -10 -10 --------- Run | Yrd Mat Min Sub Distress Signals . | . . . . Communications Jammed . | . . . . Distress Signals . | . . . . Times Spotted 31 | . 15 7 9 Peak Tracking Total 5 | . 3 3 5 Tactical Retreats 1 | . 1 . . Traps | -11 -10 -10 -10 ------- Run | Yrd Mat Min Sub Traps Triggered 4 | . 4 . . Indirectly . | . . . . Trap Hack Attempts . | . . . . Triggered . | . . . . Disarmed . | . . . . Reprogrammed 8 | . 8 . . Reused 1 | . 1 . . Traps Extracted . | . . . . Installed . | . . . . Triggered 1 | . 1 . . Machines | -11 -10 -10 -10 ---------- Run | Yrd Mat Min Sub Machines Disabled . | . . . . Max in Single Turn . | . . . . Machines Repaired . | . . . . Machines Dismantled . | . . . . Machines Sabotaged . | . . . . Overloaded Fab Kills . | . . . . Hacking | -11 -10 -10 -10 --------- Run | Yrd Mat Min Sub Machines Accessed 5 | . 4 1 . Terminals 4 | . 4 . . Fabricators . | . . . . Repair Stations . | . . . . Recycling Units . | . . . . Scanalyzers . | . . . . Garrison Access . | . . . . Total Hacks 14 | . 13 1 . Successful 7 | . 6 1 . Failed 7 | . 7 . . Catastrophic 1 | . 1 . . Database Lockouts . | . . . . Manual . | . . . . Terminals 13 | . 13 . . Fabricators . | . . . . Repair Stations . | . . . . Recycling Units . | . . . . Scanalyzers . | . . . . Garrison Access . | . . . . Terminal Hacks 7 | . 6 1 . Open Door 1 | . . 1 . Locate Traps 1 | . 1 . . Reprogram Traps 3 | . 3 . . Maintenance Status 1 | . 1 . . Hauler Manifests 1 | . 1 . . Fabricator Hacks . | . . . . Repair Station Hacks . | . . . . Recycling Unit Hacks . | . . . . Scanalyzer . | . . . . Garrison Access Hacks . | . . . . Unauthorized Hacks . | . . . . Terminals . | . . . . Fabricators . | . . . . Repair Stations . | . . . . Recycling Units . | . . . . Scanalyzers . | . . . . Garrison Access . | . . . . Data Cores Recovered . | . . . . Used . | . . . . Hacking Detections 3 | . 3 . . Full Trace Events 3 | . 3 . . Feedback Events . | . . . . Feedback Blocked . | . . . . Robot Schematics Acquired . | . . . . Robots Built . | . . . . Authchips . | . . . . Time . | . . . . Total Robot Build Rating . | . . . . Part Schematics Acquired . | . . . . Parts Built . | . . . . Authchips . | . . . . Time . | . . . . Total Part Build Rating . | . . . . Parts Repaired . | . . . . Time . | . . . . Parts Recycled . | . . . . Recycled Matter . | . . . . Retrieved Matter . | . . . . Retrieved Components . | . . . . Parts Scanalyzed . | . . . . Part Schematics Acquired . | . . . . Parts Damaged . | . . . . Bothacking | -11 -10 -10 -10 ------------ Run | Yrd Mat Min Sub Used RIF Installer . | . . . . Robots Hacked . | . . . . Non-combat . | . . . . Combat . | . . . . Robot Hacks Applied . | . . . . Relay Couplers Released . | . . . . Fabnet Peak Effective % . | . . . . Robots Rewired . | . . . . Allies Hacked . | . . . . Hacks Repelled . | . . . . Allies | -11 -10 -10 -10 -------- Run | Yrd Mat Min Sub Total Allies . | . . . . Largest Group . | . . . . Highest-Rated Group . | . . . . Highest-Rated Ally . | . . . . Total Orders . | . . . . Ally Attacks . | . . . . Total Damage . | . . . . Kills . | . . . . Allies Corrupted . | . . . . Allies Melted 1 | . . . 1 Intel | -11 -10 -10 -10 ------- Run | Yrd Mat Min Sub Robot Analysis Total . | . . . . Derelict Logs Recovered 2 | . . 2 . Drone Launches . | . . . . Drone Recoveries . | . . . . Exploration | -11 -10 -10 -10 ------------- Run | Yrd Mat Min Sub Turns Passed 2200 | 61 1411 465 263 Spaces Moved 1416 | 45 962 273 136 Core 17 | 17 . . . Treads . | . . . . Legs . | . . . . Wheels 1399 | 28 962 273 136 Hover . | . . . . Flight . | . . . . Fastest Speed 50 | 50 80 130 130 Average Speed 120 | 80 117 130 135 Slowest Speed 200 | 200 145 145 190 Overloaded Moves . | . . . . Propulsion Burnouts . | . . . . Robots Hopped . | . . . . Cave-ins Triggered . | . . . . Exploration Rate (%) 42 | 3 99 58 8 Regions Visited 3 Branch Regions 2 Pre-discovered Areas 1 | . . . 1 Known Exits Taken 1 | . . 1 . Unknown Exits Taken 2 | 1 1 . . Scrap Searched 4 | . . 1 3 Spaces Dug . | . . . . Terrain Destroyed . | . . . . Melee . | . . . . Projectile . | . . . . AOE . | . . . . Terrain Rammed . | . . . . Walls Destroyed . | . . . . Machines Disabled . | . . . . Actions | -11 -10 -10 -10 --------- Run | Yrd Mat Min Sub Total 1695 | 57 1107 349 182 Wait 93 | . 35 39 19 Move 1413 | 44 961 272 136 Hop . | . . . . Pick Up 29 | 2 20 5 2 Fast Attach 7 | 7 . . . Attach 12 | . 2 6 4 Detach . | . . . . Swap 8 | . 5 2 1 Drop 8 | . 5 3 . Fire 124 | 4 78 22 20 Melee . | . . . . Ram 1 | . 1 . . Kick . | . . . . Crush . | . . . . Escape Stasis . | . . . . Rewire . | . . . . Trap . | . . . . Miscellaneous . | . . . . Route ------- -11/Scrapyard -10/Materials (discovered 4 exits: [*Mat x3] / *Min) -10/Mines (discovered 2 exits: [*Mat] / *Sub) -10/Subcaves History --------- Turn | Location | Event 8 | -11/Scrapyard | Discovered new exit (range 16) 62 | -11/Scrapyard | Entered Materials 331 | -10/Materials | Build established: Mutant 422 | -10/Materials | Discovered new exit (range 4) 578 | -10/Materials | Discovered new exit (range 11) 636 | -10/Materials | Discovered new exit (range 12) 827 | -10/Materials | Core integrity fell below 50% 875 | -10/Materials | Discovered new exit (range 3) 1473 | -10/Materials | Entered Mines 1492 | -10/Mines | Core integrity fell below 20% 1524 | -10/Mines | Lost 4 parts (1p2n1w) 1531 | -10/Mines | Identified exit to Subcaves 1584 | -10/Mines | Found a damaged Exp. Sensor Array with a note attached 1587 | -10/Mines | Found Prototype Device 1588 | -10/Mines | Identified Exp. Sensor Array 1836 | -10/Mines | Discovered new exit (range 11) 1852 | -10/Mines | Met a Derelict who couldn't figure out how to use a Trap Extractor 1938 | -10/Mines | Entered Subcaves 1983 | -10/Subcaves | Disturbed a concealed Subdweller 2039 | -10/Subcaves | Learned location of Zion (-7) 2039 | -10/Subcaves | Met a Zionite searching for "candidates" 2094 | -10/Subcaves | Ambushed by swarm of Subdwellers 2153 | -10/Subcaves | Lost 4 allies 2195 | -10/Subcaves | Lost 5 parts (1p1n2u1w) 2201 | -10/Subcaves | Destroyed by 2A-J7L(R) with Subdweller Laser Last Messages --------------- 02130_ I9-C7V(R) affixes Scrap Shield Fragment to Scrap Shield. 02138_ 37-W40(R) destroyed. 2A-J7L(R) emerges from concealment. 02139_ Com. Wheel destroyed. 02141_ I9-C7V(R) destroyed. 02141_ Switching to secondary target: BI-917(R). 02143_ HG-Y01(u) builds Twisted Machinery. 02158_ BI-917(R) affixes Scrap Shield Fragment to Scrap Shield. 02164_ System corrupted: Heat flow error (+209). 02164_ Med. Armor Plating destroyed. 02174_ BI-917(R) affixes Scrap Shield Fragment to Scrap Shield. J6-WNO(R) emerges from concealment. 02184_ 2A-J7L(R) knocked back. 02190_ BI-917(R) destroyed. 02193_ 2A-J7L(R) knocked back. 02194_ 2A-J7L(R) affixes Scrap Shield Fragment to Scrap Shield. 02196_ System corrupted: Substantial component data lost. 02196_ HA-NZK(R) destroyed. 02198_ 2A-J7L(R) affixes Scrap Shield Fragment to Scrap Shield. 02199_ J6-WNO(R) knocked back. Map ----- +----------------------------------------------------+ | ??????????????????#####??????????????????????????? | | ?????????????????##%#%##?????????????????????????? | | ?????????????????#%=/%!#?????????????????????????? | | ?????????????????##"&###?????????????????????????? | | ?????????????????###&]#??????????????????????????? | | ?????????????????# #&######??????????????????????? | | ?????????????????# "&" #???#####??????????????? | | ?????????????????# !&* ##??## ####???????????? | | ????????????????## ! ##??# #???????????? | | ??????????????### ##### #???????????? | | ??????????????# ## # #???????????? | | ??????????????# ### ##???????????? | | ??????????????# #?# #????????????? | | ??????????????### ##?## #### ##????????????? | | ???????????????## #??# #??## ##?????????????? | | ???????????????# ##### ###### #??????????????? | | ???????????????### ## ## # #?#####???????? | | ?????????????????# # ### #???????? | | ?????????????????## # #???????? | | ????????????????## #### #???????? | | ????????????????# ## ### #???????? | | ????????????????# ##;#?## ####???????? | | ????????????????## ##?### #??????????? | | ?????????????????## #??## ###????????? | | ??????????????????## % #??# ## ##???????? | | ???????????????????### @&] ##?## #???????? | | ?????????????????????#####%R ### #???????? | | ?????????????????????????#&R ## #???????? | | ?????????????????????????# #####???????? | | ?????????????????????????## ##???????????? | | ??????????????????????????# #????????????? | | ?????????????????????????## ##???????????? | | ?????????????????????????# #???????????? | | ?????????????????????????## #???????????? | | ??????????????????????????# #???????????? | | ??????????????????????????# #???????????? | | ??????????????????????????## #???????????? | | ????????????????????????####& #???????????? | | ????????????????????????# =% ##???????????? | | ???????????????????????##!%[! #????????????? | | ???????????????????????#=[=%! #????????????? | | ??????????????????????##%!==% #????????????? | | ?????????????????????#&!*!* = ## ?????? | | ?????????????????????#%]& ### ?????? | | ???????????????""" %! !%% "#?# # # # ?????? | | ????????????? "&%!& [ ###?# ###??#??????? | | ????????????? "%[% #####????# #???????????? | | ????????????? """## #??????????####???????????? | | ??????????????????# ??????????????????????????? | | ????????????????? ??????????????????????????? | +----------------------------------------------------+ Best States ------------- Heat Dissipation 25 Energy Generation 14 Energy Capacity 275 Matter Stores 300 Matter Capacity 300 Sight Range 16 Terrain Scan Density 10 Armor Coverage 225 Evasion (%) 50 Item Schematics ----------------- None Robot Schematics ------------------ None Fabricated ------------ Nothing Alien Tech Used ----------------- None Achievements -------------- None Challenges ------------ None Game ------ Seed WeaponProcessingStorm Manual? 0 Play Time 00:32:15 Cumulative 127.2 hours Start 2024.02.27 @ 12:41:42 End 2024.02.27 @ 13:09:18 Sessions 1 Manual Loads 0 Difficulty Rogue Special Mode None Game No. 67 Rogue 55 Adventurer 12 Explorer 0 Win Type - Total 1 Types 1/0/0/0/0/0/0/0/0 Lore% 18 Gallery% 36 Achievement% 29 Wizard Run 0 Options --------- Layout 1 ASCII 0 Keyboard 0 Movement Mouse Keybinds 0 Fullscreen 1 Font 32/SmallcapsGlow Map View 77x35 Zoom Use 0% Tactical HUD 1 Map Filters NONE Filters NONE Steam 1 RUN: 4497ee71-4d5d-49f5-aa0f-1f055cd8b44c